fUSD/lending_fUSD_20240329
["ID","MTS","AMOUNT","RATE_DAILY","PERIOD"]
[320898329,1711673472135,-500.0,0.00051232,120]
[320898330,1711673472147,-500.0,0.00051232,120]
[320898331,1711673472157,-536.56,0.00051232,120]
[320898332,1711673472166,-500.0,0.00051232,120]
[320898333,1711673472175,-500.0,0.00051232,120]
[320898334,1711673472186,-500.0,0.00051232,120]
[320898335,1711673472195,-500.0,0.00051232,120]
[320898336,1711673472205,-500.0,0.00051232,120]
[320898337,1711673472215,-672.6,0.00051232,120]
[320898338,1711673472225,-253.11471992,0.00051232,120]
[320898339,1711673472236,-500.0,0.00051232,120]
[320898340,1711673472246,-475.7295,0.00051232,120]
[320898341,1711673472255,-618.06942445,0.00051232,7]
[320898342,1711673472265,-500.0,0.00051232,120]
[320898343,1711673472276,-2451.34,0.00051232,120]
[320898344,1711673472285,-808.2,0.00051232,120]
[320898345,1711673472295,-500.0,0.00051232,120]
[320898346,1711673472304,-862.99,0.00051232,120]
[320898347,1711673472315,-500.0,0.00051232,120]
[320898348,1711673472325,-807.99,0.00051232,120]
[320898349,1711673472337,-964.18,0.00051232,120]
[320898350,1711673472347,-1189.17,0.00051232,120]
[320898351,1711673472356,-500.0,0.00051232,120]
[320898352,1711673472366,-500.0,0.00051232,120]
[320898353,1711673472376,-500.0,0.00051232,120]
[320898354,1711673472386,-869.19,0.00051232,120]
[320898355,1711673472396,-1961.36,0.00051232,120]
[320898356,1711673472406,-500.0,0.00051232,120]
[320898357,1711673472416,-1396.85,0.00051232,120]
[320898358,1711673472425,-1181.64,0.00051232,120]
[320898359,1711673472435,-801.75,0.00051232,120]
[320898360,1711673472444,-1328.02,0.00051232,120]
[320898361,1711673472454,-500.0,0.00051232,80]
[320898362,1711673472464,-1632.37,0.00051232,120]
[320898363,1711673472473,-606.32,0.00051232,120]
[320898364,1711673472483,-1153.5,0.00051232,120]
[320898365,1711673472493,-500.0,0.00051232,2]
[320898366,1711673472504,-587.12,0.00051232,120]
[320898367,1711673472513,-500.0,0.00051232,120]
[320898368,1711673472523,-500.0,0.00051232,120]
[320898369,1711673472532,-837.7,0.00051232,120]
[320898370,1711673472542,-693.92,0.00051232,120]
[320898371,1711673472551,-755.98,0.00051232,120]
[320898372,1711673472560,-5619.06,0.00051232,120]
[320898373,1711673472570,-7958.74,0.00051232,120]
[320898374,1711673472579,-500.0,0.00051232,120]
[320898375,1711673472589,-588.61,0.00051232,120]
[320898376,1711673472598,-1294.82,0.00051232,120]
[320898377,1711673472608,-1258.38,0.00051232,120]
[320898378,1711673472617,-560.73,0.00051232,120]
[320898379,1711673472627,-661.06,0.00051232,120]
[320898380,1711673472636,-500.0,0.00051232,120]
[320898381,1711673472646,-2832.51,0.00051232,120]
[320898382,1711673472655,-1242.09,0.00051232,120]
[320898383,1711673472665,-1562.01,0.00051232,120]
[320898384,1711673472674,-1152.74,0.00051232,120]
[320898385,1711673472683,-508.15,0.00051232,120]
[320898386,1711673472693,-500.0,0.00051232,120]
[320898387,1711673472703,-1310.48,0.00051232,120]
[320898388,1711673472713,-978.48,0.00051232,120]
[320898389,1711673472722,-500.0,0.00051232,120]
[320898390,1711673472732,-918.9,0.00051232,120]
[320898391,1711673472742,-939.22,0.00051232,120]
[320898392,1711673472752,-1210.67,0.00051232,120]
[320898393,1711673472761,-723.87,0.00051232,120]
[320898394,1711673472771,-1069.55,0.00051232,120]
[320898395,1711673472780,-1412.5,0.00051232,120]
[320898396,1711673472790,-500.0,0.00051232,120]
[320898397,1711673472799,-4799.56,0.00051232,120]
[320898398,1711673472809,-1590.32,0.00051232,120]
[320898399,1711673472819,-500.0,0.00051232,120]
[320898400,1711673472829,-500.0,0.00051232,120]
[320898401,1711673472839,-2362.22,0.00051232,120]
[320898402,1711673472849,-802.1,0.00051232,120]
[320898403,1711673472858,-2407.8,0.00051232,120]
[320898404,1711673472867,-840.9,0.00051232,120]
[320898405,1711673472877,-731.15,0.00051232,120]
[320898406,1711673472886,-792.2,0.00051232,120]
[320898407,1711673472895,-1039.71,0.00051232,120]
[320898408,1711673472904,-500.0,0.00051232,60]
[320898409,1711673472914,-500.0,0.00051232,120]
[320898410,1711673472924,-500.0,0.00051232,120]
[320898411,1711673472933,-500.0,0.00051232,120]
[320898412,1711673472943,-730.77,0.00051232,120]
[320898413,1711673472953,-610.17,0.00051232,120]
[320898414,1711673472964,-500.0,0.00051232,120]
[320898415,1711673472974,-500.0,0.00051232,120]
[320898416,1711673472984,-9890.54,0.00051232,120]
[320898417,1711673472993,-606.66,0.00051232,120]
[320898418,1711673473003,-573.42,0.00051232,120]
[320898419,1711673473012,-1134.2,0.00051232,120]
[320898420,1711673473022,-919.69,0.00051232,120]
[320898421,1711673473031,-1377.54,0.00051232,120]
[320898422,1711673473041,-786.58,0.00051232,120]
[320898423,1711673473054,-4023.92,0.00051232,120]
[320898424,1711673473066,-3023.4,0.00051232,120]
[320898425,1711673473080,-636.31,0.00051232,120]
[320898426,1711673473090,-1100.73,0.00051232,120]
[320898427,1711673473102,-500.0,0.00051232,120]
[320898428,1711673473118,-1407.91,0.00051232,120]
[320898429,1711673473128,-1089.21,0.00051232,120]
[320898430,1711673473138,-919.76,0.00051232,120]
[320898431,1711673473148,-734.22,0.00051232,120]
[320898432,1711673473160,-500.0,0.00051232,2]
[320898433,1711673473170,-980.15,0.00051232,120]
[320898434,1711673473179,-1265.19,0.00051232,120]
[320898435,1711673473189,-995.13,0.00051232,120]
[320898436,1711673473200,-500.0,0.00051232,120]
[320898437,1711673473209,-868.14,0.00051232,120]
[320898438,1711673473228,-1180.08,0.00051232,21]
[320898439,1711673473237,-1526.27,0.00051232,120]
[320898440,1711673473246,-500.0,0.00051232,120]
[320898441,1711673473255,-3425.78,0.00051232,120]
[320898442,1711673473265,-763.58,0.00051232,120]
[320898443,1711673473275,-500.0,0.00051232,120]
[320898444,1711673473287,-788.83,0.00051232,120]
[320898445,1711673473297,-1621.94,0.00051232,120]
[320898446,1711673473308,-826.69,0.00051232,120]
[320898447,1711673473318,-3176.79,0.00051232,120]
[320898448,1711673473328,-725.98,0.00051232,120]
[320898449,1711673473337,-976.73,0.00051232,120]
[320898450,1711673473346,-2485.37,0.00051232,120]
[320898451,1711673473356,-729.23,0.00051232,120]
[320898452,1711673473365,-1659.15,0.00051232,120]
[320898453,1711673473374,-500.0,0.00051232,120]
[320898454,1711673473383,-766.33,0.00051232,120]
[320898455,1711673473393,-1196.14,0.00051232,120]
[320898456,1711673473402,-1177.99,0.00051232,120]
[320898457,1711673473411,-1126.47,0.00051232,120]
[320898458,1711673473421,-786.06,0.00051232,120]
[320898459,1711673473430,-773.98,0.00051232,120]
[320898460,1711673473440,-500.0,0.00051232,120]
[320898461,1711673473450,-845.19,0.00051232,120]
[320898462,1711673473460,-500.0,0.00051232,120]
[320898463,1711673473469,-1590.9,0.00051232,120]
[320898464,1711673473478,-950.48,0.00051232,120]
[320898465,1711673473489,-860.72,0.00051232,120]
[320898466,1711673473499,-525.07,0.00051232,120]
[320898467,1711673473509,-499.07485365,0.00051232,120]
[320898468,1711673473518,-872.56,0.00051232,120]
[320898469,1711673473529,-585.81,0.00051232,120]
[320898470,1711673473538,-879.8,0.00051232,120]
[320898471,1711673473554,-650.71,0.00051232,120]
[320898472,1711673473564,-150.0,0.00051249,30]
[320898473,1711673473581,-246.90262119,0.00051263,30]
[320898474,1711673473590,-150.0,0.00051285,30]
[320898475,1711673473601,-246.90262119,0.0005131,30]
[320898476,1711673473612,-150.0,0.00051312,30]
[320898477,1711673473621,-150.0,0.00051356,30]
[320898478,1711673473632,-246.90262119,0.00051356,30]
[320898479,1711673473642,-150.0,0.000514,29]
[320898480,1711673473651,-378.33092,0.000514,56]
[320898481,1711673473667,-246.90262119,0.00051403,30]
[320898482,1711673473677,-150.0,0.00051403,30]
[320898483,1711673473691,-749.06013115,0.0005141,48]
[320898484,1711673473709,-509.0,0.00051424,60]
[320898485,1711673473719,-150.0,0.00051427,30]
[320898486,1711673473728,-151.032905,0.00051448,110]
[320898487,1711673473745,-246.90262119,0.0005145,30]
[320898488,1711673473760,-2160.9022041,0.00051471,2]
[320898489,1711673473771,-2110.7811197,0.00051471,2]
[320898490,1711673473782,-33519.6218775,0.00051471,2]
[320898491,1711673473792,-150.0,0.00051494,30]
[320898492,1711673473930,-246.90262119,0.00051496,30]
[320898493,1711673473951,-150.0,0.00051498,30]
[320898494,1711673473960,-324.11471311,0.000515,2]
[320898495,1711673473970,-36795.6102274,0.000515,30]
[320898496,1711673473979,-630.0,0.00051506,120]
[320898497,1711673473989,-525.85,0.00051506,120]
[320898498,1711673473998,-735.85,0.00051506,120]
[320898499,1711673474007,-440.94373538,0.00051506,120]
[320898500,1711673474016,-536.7,0.00051506,120]
[320898501,1711673474026,-500.0,0.00051506,120]
[320898502,1711673474035,-578.03,0.00051506,120]
[320898503,1711673474044,-500.0,0.00051506,120]
[320898504,1711673474055,-500.0,0.00051506,120]
[320898505,1711673474064,-500.0,0.00051506,120]
[320898506,1711673474075,-500.0,0.00051506,120]
[320898507,1711673474085,-500.0,0.00051506,120]
[320898508,1711673474094,-500.0,0.00051506,120]
[320898509,1711673474104,-500.0,0.00051506,120]
[320898510,1711673474113,-500.0,0.00051506,120]
[320898511,1711673474124,-500.0,0.00051506,120]
[320898512,1711673474134,-197.49256864,0.00051506,120]
[320898513,1711673474144,-500.0,0.00051506,120]
[320898514,1711673474155,-500.0,0.00051506,120]
[320898515,1711673474164,-500.0,0.00051506,120]
[320898516,1711673474174,-500.0,0.00051506,120]
[320898517,1711673474184,-590.48,0.00051506,120]
[320898518,1711673474193,-500.0,0.00051506,120]
[320898519,1711673474203,-500.0,0.00051506,120]
[320898520,1711673474213,-500.0,0.00051506,120]
[320898521,1711673474222,-500.0,0.00051506,120]
[320898522,1711673474232,-500.0,0.00051506,120]
[320898523,1711673474241,-500.0,0.00051506,120]
[320898524,1711673474251,-500.0,0.00051506,120]
[320898525,1711673474262,-500.0,0.00051506,120]
[320898526,1711673474271,-500.0,0.00051506,120]
[320898527,1711673474281,-500.0,0.00051506,120]
[320898528,1711673474291,-752.88,0.00051506,120]
[320898529,1711673474301,-500.34,0.00051506,120]
[320898530,1711673474311,-500.0,0.00051506,120]
[320898531,1711673474320,-500.0,0.00051506,120]
[320898532,1711673474330,-535.8,0.00051506,120]
[320898533,1711673474339,-453.50499811,0.00051506,120]
[320898534,1711673474349,-500.0,0.00051506,120]
[320898535,1711673474358,-171.27,0.00051506,120]
[320898536,1711673474368,-511.11,0.00051506,120]
[320898537,1711673474378,-500.0,0.00051506,120]
[320898538,1711673474387,-500.0,0.00051506,120]
[320898539,1711673474397,-500.0,0.00051506,120]
[320898540,1711673474406,-500.0,0.00051506,120]
[320898541,1711673474416,-520.88,0.00051506,120]
[320898542,1711673474426,-500.0,0.00051506,60]
[320898543,1711673474436,-500.0,0.00051506,120]
[320898544,1711673474445,-500.0,0.00051506,120]
[320898545,1711673474455,-500.0,0.00051506,120]
[320898546,1711673474464,-500.0,0.00051506,120]
[320898547,1711673474474,-565.98,0.00051506,120]
[320898548,1711673474483,-500.0,0.00051506,120]
[320898549,1711673474492,-500.0,0.00051506,120]
[320898550,1711673474502,-500.0,0.00051506,120]
[320898551,1711673474511,-536.56,0.00051506,120]
[320898552,1711673474520,-500.0,0.00051506,120]
[320898553,1711673474533,-500.0,0.00051506,120]
[320898554,1711673474543,-500.0,0.00051506,120]
[320898555,1711673474553,-500.0,0.00051506,120]
[320898556,1711673474562,-500.0,0.00051506,120]
[320898557,1711673474571,-672.6,0.00051506,120]
[320898558,1711673474581,-2900.95,0.00051506,120]
[320898559,1711673474591,-500.0,0.00051506,120]
[320898560,1711673474601,-2900.95,0.00051506,120]
[320898561,1711673474610,-2900.95,0.00051506,120]
[320898562,1711673474620,-2900.95,0.00051506,120]
[320898563,1711673474629,-2900.95,0.00051506,120]
[320898564,1711673474638,-2900.95,0.00051506,120]
[320898565,1711673474648,-2900.95,0.00051506,120]
[320898566,1711673474657,-2900.95,0.00051506,120]
[320898567,1711673474666,-2900.95,0.00051506,120]
[320898568,1711673474675,-2900.95,0.00051506,120]
[320898569,1711673474684,-2900.95,0.00051506,120]
[320898570,1711673474694,-2900.95,0.00051506,120]
[320898571,1711673474704,-2900.95,0.00051506,120]
[320898572,1711673474713,-2900.95,0.00051506,120]
[320898573,1711673474722,-500.0,0.00051506,120]
[320898574,1711673474732,-2900.95,0.00051506,120]
[320898575,1711673474741,-2900.95,0.00051506,120]
[320898576,1711673474751,-2451.34,0.00051506,120]
[320898577,1711673474760,-808.2,0.00051506,120]
[320898578,1711673474770,-2900.95,0.00051506,120]
[320898579,1711673474779,-2900.95,0.00051506,120]
[320898580,1711673474788,-2900.95,0.00051506,120]
[320898581,1711673474798,-500.0,0.00051506,120]
[320898582,1711673474808,-500.0,0.00051506,120]
[320898583,1711673474818,-862.99,0.00051506,120]
[320898584,1711673474828,-807.99,0.00051506,120]
[320898585,1711673474838,-964.18,0.00051506,120]
[320898586,1711673474848,-1189.17,0.00051506,120]
[320898587,1711673474857,-500.0,0.00051506,120]
[320898588,1711673474867,-500.0,0.00051506,120]
[320898589,1711673474877,-500.0,0.00051506,120]
[320898590,1711673474886,-1258.62,0.00051506,120]
[320898591,1711673474895,-1258.62,0.00051506,120]
[320898592,1711673474905,-1258.62,0.00051506,120]
[320898593,1711673474915,-1258.62,0.00051506,120]
[320898594,1711673474926,-869.19,0.00051506,120]
[320898595,1711673474935,-1258.62,0.00051506,120]
[320898596,1711673474945,-1961.36,0.00051506,120]
[320898597,1711673474957,-1258.62,0.00051506,120]
[320898598,1711673474967,-1258.62,0.00051506,120]
[320898599,1711673474982,-1258.62,0.00051506,120]
[320898600,1711673474991,-1258.62,0.00051506,120]
[320898601,1711673475012,-1258.62,0.00051506,120]
[320898602,1711673475025,-1258.62,0.00051506,120]
[320898603,1711673475048,-1258.62,0.00051506,120]
[320898604,1711673475070,-1258.62,0.00051506,120]
[320898605,1711673475080,-1258.62,0.00051506,120]
[320898606,1711673475091,-1258.62,0.00051506,120]
[320898607,1711673475111,-1258.62,0.00051506,120]
[320898608,1711673475135,-1258.62,0.00051506,120]
[320898609,1711673475157,-1258.62,0.00051506,120]
[320898610,1711673475169,-1258.62,0.00051506,120]
[320898611,1711673475179,-1258.62,0.00051506,120]
[320898612,1711673475189,-1258.62,0.00051506,120]
[320898613,1711673475201,-500.0,0.00051506,120]
[320898614,1711673475210,-1258.62,0.00051506,120]
[320898615,1711673475220,-1258.62,0.00051506,120]
[320898616,1711673475229,-1396.85,0.00051506,120]
[320898617,1711673475239,-1181.64,0.00051506,120]
[320898618,1711673475249,-1258.77910724,0.00051506,120]
[320898619,1711673475259,-801.75,0.00051506,120]
[320898620,1711673475268,-1328.02,0.00051506,120]
[320898621,1711673475278,-500.0,0.00051506,80]
[320898622,1711673475287,-606.32,0.00051506,120]
[320898623,1711673475297,-1632.37,0.00051506,120]
[320898624,1711673475306,-1153.5,0.00051506,120]
[320898625,1711673475316,-500.0,0.00051506,2]
[320898626,1711673475326,-587.12,0.00051506,120]
[320898627,1711673475335,-500.0,0.00051506,120]
[320898628,1711673475345,-500.0,0.00051506,120]
[320898629,1711673475355,-837.7,0.00051506,120]
[320898630,1711673475365,-693.92,0.00051506,120]
[320898631,1711673475375,-755.98,0.00051506,120]
[320898632,1711673475385,-5619.06,0.00051506,120]
[320898633,1711673475395,-7958.74,0.00051506,120]
[320898634,1711673475405,-500.0,0.00051506,120]
[320898635,1711673475415,-588.61,0.00051506,120]
[320898636,1711673475425,-1294.82,0.00051506,120]
[320898637,1711673475436,-1258.38,0.00051506,120]
[320898638,1711673475446,-560.73,0.00051506,120]
[320898639,1711673475455,-661.06,0.00051506,120]
[320898640,1711673475465,-500.0,0.00051506,120]
[320898641,1711673475475,-2832.51,0.00051506,120]
[320898642,1711673475485,-1242.09,0.00051506,120]
[320898643,1711673475494,-1562.01,0.00051506,120]
[320898644,1711673475503,-1152.74,0.00051506,120]
[320898645,1711673475513,-508.15,0.00051506,120]
[320898646,1711673475522,-500.0,0.00051506,120]
[320898647,1711673475532,-1310.48,0.00051506,120]
[320898648,1711673475542,-978.48,0.00051506,120]
[320898649,1711673475551,-500.0,0.00051506,120]
[320898650,1711673475561,-918.9,0.00051506,120]
[320898651,1711673475570,-939.22,0.00051506,120]
[320898652,1711673475580,-1210.67,0.00051506,120]
[320898653,1711673475589,-723.87,0.00051506,120]
[320898654,1711673475598,-1069.55,0.00051506,120]
[320898655,1711673475608,-1412.5,0.00051506,120]
[320898656,1711673475617,-500.0,0.00051506,120]
[320898657,1711673475626,-4799.56,0.00051506,120]
[320898658,1711673475636,-1590.32,0.00051506,120]
[320898659,1711673475646,-500.0,0.00051506,120]
[320898660,1711673475655,-500.0,0.00051506,120]
[320898661,1711673475665,-2362.22,0.00051506,120]
[320898662,1711673475674,-802.1,0.00051506,120]
[320898663,1711673475684,-2407.8,0.00051506,120]
[320898664,1711673475693,-840.9,0.00051506,120]
[320898665,1711673475703,-731.15,0.00051506,120]
[320898666,1711673475712,-792.2,0.00051506,120]
[320898667,1711673475722,-1039.71,0.00051506,120]
[320898668,1711673475731,-500.0,0.00051506,60]
[320898669,1711673475741,-500.0,0.00051506,120]
[320898670,1711673475750,-627.93217126,0.00051506,120]
[320898671,1711673475760,-500.0,0.00051506,120]
[320898672,1711673475769,-730.77,0.00051506,120]
[320898673,1711673475778,-610.17,0.00051506,120]
[320898674,1711673475787,-500.0,0.00051506,120]
[320898675,1711673475796,-500.0,0.00051506,120]
[320898676,1711673475806,-9890.54,0.00051506,120]
[320898677,1711673475816,-606.66,0.00051506,120]
[320898678,1711673475825,-573.42,0.00051506,120]
[320898679,1711673475834,-1134.2,0.00051506,120]
[320898680,1711673475843,-919.69,0.00051506,120]
[320898681,1711673475853,-1377.54,0.00051506,120]
[320898682,1711673475862,-786.58,0.00051506,120]
[320898683,1711673475872,-4023.92,0.00051506,120]
[320898684,1711673475881,-3023.4,0.00051506,120]
[320898685,1711673475891,-636.31,0.00051506,120]
[320898686,1711673475901,-1100.73,0.00051506,120]
[320898687,1711673475910,-500.0,0.00051506,120]
[320898688,1711673475919,-1407.91,0.00051506,120]
[320898689,1711673475928,-1089.21,0.00051506,120]
[320898690,1711673475938,-919.76,0.00051506,120]
[320898691,1711673475948,-734.22,0.00051506,120]
[320898692,1711673475958,-500.0,0.00051506,2]
[320898693,1711673475968,-980.15,0.00051506,120]
[320898694,1711673475977,-1265.19,0.00051506,120]
[320898695,1711673475987,-995.13,0.00051506,120]
[320898696,1711673475996,-500.0,0.00051506,120]
[320898697,1711673476006,-868.14,0.00051506,120]
[320898698,1711673476016,-1180.08,0.00051506,21]
[320898699,1711673476026,-1526.27,0.00051506,120]
[320898700,1711673476036,-500.0,0.00051506,120]
[320898701,1711673476046,-3425.78,0.00051506,120]
[320898702,1711673476058,-763.58,0.00051506,120]
[320898703,1711673476068,-500.0,0.00051506,120]
[320898704,1711673476078,-788.83,0.00051506,120]
[320898705,1711673476088,-1621.94,0.00051506,120]
[320898706,1711673476098,-826.69,0.00051506,120]
[320898707,1711673476108,-3176.79,0.00051506,120]
[320898708,1711673476119,-725.98,0.00051506,120]
[320898709,1711673476129,-976.73,0.00051506,120]
[320898710,1711673476139,-2485.37,0.00051506,120]
[320898711,1711673476149,-729.23,0.00051506,120]
[320898712,1711673476158,-1659.15,0.00051506,120]
[320898713,1711673476167,-500.0,0.00051506,120]
[320898714,1711673476176,-766.33,0.00051506,120]
[320898715,1711673476185,-1196.14,0.00051506,120]
[320898716,1711673476196,-1177.99,0.00051506,120]
[320898717,1711673476206,-1126.47,0.00051506,120]
[320898718,1711673476216,-786.06,0.00051506,120]
[320898719,1711673476226,-773.98,0.00051506,120]
[320898720,1711673476236,-500.0,0.00051506,120]
[320898721,1711673476245,-845.19,0.00051506,120]
[320898722,1711673476254,-500.0,0.00051506,120]
[320898723,1711673476264,-1590.9,0.00051506,120]
[320898724,1711673476274,-950.48,0.00051506,120]
[320898725,1711673476284,-860.72,0.00051506,120]
[320898726,1711673476294,-525.07,0.00051506,120]
[320898727,1711673476304,-872.56,0.00051506,120]
[320898728,1711673476314,-585.81,0.00051506,120]
[320898729,1711673476324,-879.8,0.00051506,120]
[320898730,1711673476334,-650.71,0.00051506,120]
[320898731,1711673476343,-2000.0,0.00051541,5]
[320898732,1711673476492,-2000.0,0.00051541,5]
[320898733,1711673476503,-1676.0635,0.00051541,5]
[320898734,1711673476513,-2000.0,0.00051541,5]
[320898735,1711673476523,-2000.0,0.00051541,5]
[320898736,1711673476533,-2000.0,0.00051541,5]
[320898737,1711673476543,-246.90262119,0.00051543,30]
[320898738,1711673476552,-150.0,0.00051569,30]
[320898739,1711673476562,-150.0,0.00051584,30]
[320898740,1711673476572,-246.90262119,0.0005159,30]
[320898741,1711673476582,-316.48888889,0.00051616,120]
[320898742,1711673476591,-246.90262119,0.00051636,30]
[320898743,1711673476601,-150.0,0.0005164,30]
[320898744,1711673476611,-1155.1501682,0.00051651,4]
[320898745,1711673476621,-150.0,0.00051675,30]
[320898746,1711673476631,-246.90262119,0.00051683,30]
[320898747,1711673476641,-2620.80486787,0.00051698,56]
[320898748,1711673476651,-509.0,0.00051698,60]
[320898749,1711673476661,-311.2,0.000517,7]
[320898750,1711673476670,-150.0,0.00051711,30]
[320898751,1711673476681,-150.0,0.00051711,30]
[320898752,1711673476690,-246.90262119,0.0005173,30]
[320898753,1711673476700,-2196.8429015,0.0005173,2]
[320898754,1711673476711,-700.0,0.00051743,90]
[320898755,1711673476720,-2900.95,0.00051764,120]
[320898756,1711673476731,-2900.95,0.00051764,120]
[320898757,1711673476741,-2900.95,0.00051764,120]
[320898758,1711673476751,-2900.95,0.00051764,120]
[320898759,1711673476761,-2901.12372068,0.00051764,120]
[320898760,1711673476770,-2234.6519121,0.00051765,2]
[320898761,1711673476780,-1873.4702228,0.00051765,2]
[320898762,1711673476790,-1830.0159846,0.00051765,2]
[320898763,1711673476801,-29061.0159727,0.00051765,2]
[320898764,1711673476811,-150.0,0.00051765,30]
[320898765,1711673476821,-209.0,0.0005177,30]
[320898766,1711673476831,-246.90262119,0.00051776,30]
[320898767,1711673476840,-630.0,0.0005178,120]
[320898768,1711673476850,-525.85,0.0005178,120]
[320898769,1711673476859,-735.85,0.0005178,120]
[320898770,1711673476868,-536.7,0.0005178,120]
[320898771,1711673476877,-500.0,0.0005178,120]
[320898772,1711673476886,-578.03,0.0005178,120]
[320898773,1711673476895,-500.0,0.0005178,120]
[320898774,1711673476904,-500.0,0.0005178,120]
[320898775,1711673476913,-500.0,0.0005178,120]
[320898776,1711673476923,-500.0,0.0005178,120]
[320898777,1711673476933,-500.0,0.0005178,120]
[320898778,1711673476943,-500.0,0.0005178,120]
[320898779,1711673476953,-500.0,0.0005178,120]
[320898780,1711673476962,-500.0,0.0005178,120]
[320898781,1711673476971,-500.0,0.0005178,120]
[320898782,1711673476981,-500.0,0.0005178,120]
[320898783,1711673476991,-500.0,0.0005178,120]
[320898784,1711673477001,-500.0,0.0005178,120]
[320898785,1711673477010,-500.0,0.0005178,120]
[320898786,1711673477019,-590.48,0.0005178,120]
[320898787,1711673477029,-500.0,0.0005178,120]
[320898788,1711673477039,-500.0,0.0005178,120]
[320898789,1711673477049,-309.20611129,0.0005178,120]
[320898790,1711673477062,-500.0,0.0005178,120]
[320898791,1711673477071,-221.7760257,0.0005178,120]
[320898792,1711673477081,-500.0,0.0005178,120]
[320898793,1711673477091,-500.0,0.0005178,120]
[320898794,1711673477101,-500.0,0.0005178,120]
[320898795,1711673477111,-390.03090275,0.0005178,120]
[320898796,1711673477121,-500.0,0.0005178,120]
[320898797,1711673477131,-752.88,0.0005178,120]
[320898798,1711673477142,-500.34,0.0005178,120]
[320898799,1711673477153,-500.0,0.0005178,120]
[320898800,1711673477163,-500.0,0.0005178,120]
[320898801,1711673477173,-535.8,0.0005178,120]
[320898802,1711673477183,-335.60292479,0.0005178,120]
[320898803,1711673477192,-171.27,0.0005178,120]
[320898804,1711673477202,-511.11,0.0005178,120]
[320898805,1711673477211,-500.0,0.0005178,120]
[320898806,1711673477220,-500.0,0.0005178,120]
[320898807,1711673477230,-500.0,0.0005178,120]
[320898808,1711673477240,-500.0,0.0005178,120]
[320898809,1711673477250,-520.88,0.0005178,120]
[320898810,1711673477261,-500.0,0.0005178,120]
[320898811,1711673477272,-500.0,0.0005178,120]
[320898812,1711673477281,-157.6656165,0.0005178,120]
[320898813,1711673477292,-500.0,0.0005178,120]
[320898814,1711673477301,-565.98,0.0005178,120]
[320898815,1711673477313,-500.0,0.0005178,120]
[320898816,1711673477323,-500.0,0.0005178,120]
[320898817,1711673477333,-500.0,0.0005178,120]
[320898818,1711673477342,-536.56,0.0005178,120]
[320898819,1711673477352,-500.0,0.0005178,120]
[320898820,1711673477361,-500.0,0.0005178,120]
[320898821,1711673477372,-500.0,0.0005178,120]
[320898822,1711673477382,-500.0,0.0005178,120]
[320898823,1711673477392,-500.0,0.0005178,120]
[320898824,1711673477402,-22.21410698,0.0005178,120]
[320898825,1711673477832,-500.0,0.00049315,120]
[320898826,1711673477846,-965.33865069,0.00050136,120]
[320898827,1711673477864,-49.62134931,0.00050136,120]
[320898828,1711673477878,-650.38589302,0.0005178,120]